Workbook

Sheet Guide
B2: FLUX DE TRÉSORERIE PERSONNEL
B3: Ce classeur comporte des feuilles de calcul pour le flux de trésorerie annuels, mensuels et quotidiens. Choisissez le type de flux de trésorerie qui vous convient ou utilisez-les tous pour mieux suivre vos flux de trésorerie personnels.
B5: Flux de trésorerie quotidien | E5: Flux de trésorerie mensuel | H5: Flux de trésorerie annuel
B7: Entrez le montant estimé de vos flux de trésorerie quotidiens et examinez l’estimation des totaux mensuels et annuels. Cette feuille de calcul vous permet d’identifier vos habitudes quotidiennes en matière de dépenses au cours d’un mois ou d’une année. | E7: Entrez vos flux de trésorerie mensuels ou estimez les mois restants pour afficher les flux de trésorerie prévisionnels pour l’année et pour chaque mois. | H7: Entrez un montant de flux de trésorerie annuel dans quatre feuilles de calcul : Revenus, dépenses, discrétionnaires et épargnes. Consultez les détails mensuels et le comparatif des différentes valeurs, et ce qu’il faut retenir de vos chiffres annuels et mensuels.

Sheet Flux de trésorerie quotidien
B1: FLUX DE TRÉSORERIE PERSONNEL
C2: Total de la trésorerie disponible : | D2: =FluxTrésorerieQuotidiens -> 577.84 $ | F2: REMARQUE : Si vous souhaitez ajouter des postes quotidiens à la table, estimez le montant ou la valeur mensuel, et placez cette valeur dans la colonne du mois approprié.
B4: RÉCAPITULATIF QUOTIDIEN
B5: Totaux | C5: Quotidien | D5: Mensuel | E5: Annuel
B6: Revenu | C6: =SUMIF(Quotidien[Type],$B6,Quotidien[Quotidien]) -> 342.47 $ | D6: =SUMIF(Quotidien[Type],$B6,Quotidien[Mensuel]) -> 10,416.80 $ | E6: =SUMIF(Quotidien[Type],$B6,Quotidien[Annuel]) -> 125,001.55 $
B7: Dépenses | C7: =SUMIF(Quotidien[Type],$B7,Quotidien[Quotidien]) -> 136.06 $ | D7: =SUMIF(Quotidien[Type],$B7,Quotidien[Mensuel]) -> 4,138.49 $ | E7: =SUMIF(Quotidien[Type],$B7,Quotidien[Annuel]) -> 49,661.90 $
B8: Discrétionnaire | C8: =SUMIF(Quotidien[Type],$B8,Quotidien[Quotidien]) -> 36.29 $ | D8: =SUMIF(Quotidien[Type],$B8,Quotidien[Mensuel]) -> 1,103.82 $ | E8: =SUMIF(Quotidien[Type],$B8,Quotidien[Annuel]) -> 13,245.85 $
B9: Épargne | C9: =SUMIF(Quotidien[Type],$B9,Quotidien[Quotidien]) -> 63.02 $ | D9: =SUMIF(Quotidien[Type],$B9,Quotidien[Mensuel]) -> 1,916.86 $ | E9: =SUMIF(Quotidien[Type],$B9,Quotidien[Annuel]) -> 23,002.30 $
B11: Type | C11: Description | D11: Quotidien | E11: Mensuel | F11: Annuel
B12: Revenu | C12: Salaire | D12: 246.58 $ | E12: =Quotidien[[#This Row],[Annuel]]/12 -> 7,500.14 $ | F12: =Quotidien[[#This Row],[Quotidien]]*365 -> 90,001.70 $
B13: Revenu | C13: Commissions/Primes | D13: 13.70 $ | E13: =Quotidien[[#This Row],[Annuel]]/12 -> 416.71 $ | F13: =Quotidien[[#This Row],[Quotidien]]*365 -> 5,000.50 $
B14: Revenu | C14: Divers 1 | D14: 82.19 $ | E14: =Quotidien[[#This Row],[Annuel]]/12 -> 2,499.95 $ | F14: =Quotidien[[#This Row],[Quotidien]]*365 -> 29,999.35 $
B15: Revenu | C15: Divers 2 | D15: 0.00 $ | E15: =Quotidien[[#This Row],[Annuel]]/12 -> 0.00 $ | F15: =Quotidien[[#This Row],[Quotidien]]*365 -> 0.00 $
B16: Revenu | C16: Divers 3 | D16: 0.00 $ | E16: =Quotidien[[#This Row],[Annuel]]/12 -> 0.00 $ | F16: =Quotidien[[#This Row],[Quotidien]]*365 -> 0.00 $
B17: Revenu | C17: Divers 4 | D17: 0.00 $ | E17: =Quotidien[[#This Row],[Annuel]]/12 -> 0.00 $ | F17: =Quotidien[[#This Row],[Quotidien]]*365 -> 0.00 $
B18: Dépenses | C18: Assurance maladie | D18: 41.10 $ | E18: =Quotidien[[#This Row],[Annuel]]/12 -> 1,250.13 $ | F18: =Quotidien[[#This Row],[Quotidien]]*365 -> 15,001.50 $
B19: Dépenses | C19: Impôts sur les revenus | D19: 6.85 $ | E19: =Quotidien[[#This Row],[Annuel]]/12 -> 208.35 $ | F19: =Quotidien[[#This Row],[Quotidien]]*365 -> 2,500.25 $
B20: Dépenses | C20: Taxe automobile/Frais | D20: 0.55 $ | E20: =Quotidien[[#This Row],[Annuel]]/12 -> 16.73 $ | F20: =Quotidien[[#This Row],[Quotidien]]*365 -> 200.75 $
B21: Dépenses | C21: Prêt automobile | D21: 10.96 $ | E21: =Quotidien[[#This Row],[Annuel]]/12 -> 333.37 $ | F21: =Quotidien[[#This Row],[Quotidien]]*365 -> 4,000.40 $
B22: Dépenses | C22: Prêt immobilier/Loyer | D22: 41.10 $ | E22: =Quotidien[[#This Row],[Annuel]]/12 -> 1,250.13 $ | F22: =Quotidien[[#This Row],[Quotidien]]*365 -> 15,001.50 $
B23: Dépenses | C23: Assurance | D23: 0.68 $ | E23: =Quotidien[[#This Row],[Annuel]]/12 -> 20.68 $ | F23: =Quotidien[[#This Row],[Quotidien]]*365 -> 248.20 $
B24: Dépenses | C24: Électricité | D24: 3.29 $ | E24: =Quotidien[[#This Row],[Annuel]]/12 -> 100.07 $ | F24: =Quotidien[[#This Row],[Quotidien]]*365 -> 1,200.85 $
B25: Dépenses | C25: Gaz | D25: 1.64 $ | E25: =Quotidien[[#This Row],[Annuel]]/12 -> 49.88 $ | F25: =Quotidien[[#This Row],[Quotidien]]*365 -> 598.60 $
B26: Dépenses | C26: Eau | D26: 1.64 $ | E26: =Quotidien[[#This Row],[Annuel]]/12 -> 49.88 $ | F26: =Quotidien[[#This Row],[Quotidien]]*365 -> 598.60 $
B27: Dépenses | C27: Assainissement | D27: 0.82 $ | E27: =Quotidien[[#This Row],[Annuel]]/12 -> 24.94 $ | F27: =Quotidien[[#This Row],[Quotidien]]*365 -> 299.30 $
B28: Dépenses | C28: Ordures ménagères | D28: 0.41 $ | E28: =Quotidien[[#This Row],[Annuel]]/12 -> 12.47 $ | F28: =Quotidien[[#This Row],[Quotidien]]*365 -> 149.65 $
B29: Dépenses | C29: Téléphone | D29: 1.64 $ | E29: =Quotidien[[#This Row],[Annuel]]/12 -> 49.88 $ | F29: =Quotidien[[#This Row],[Quotidien]]*365 -> 598.60 $
B30: Dépenses | C30: Internet | D30: 1.64 $ | E30: =Quotidien[[#This Row],[Annuel]]/12 -> 49.88 $ | F30: =Quotidien[[#This Row],[Quotidien]]*365 -> 598.60 $
B31: Dépenses | C31: Primes d’invalidité | D31: 4.11 $ | E31: =Quotidien[[#This Row],[Annuel]]/12 -> 125.01 $ | F31: =Quotidien[[#This Row],[Quotidien]]*365 -> 1,500.15 $
B32: Dépenses | C32: Nourriture | D32: 13.70 $ | E32: =Quotidien[[#This Row],[Annuel]]/12 -> 416.71 $ | F32: =Quotidien[[#This Row],[Quotidien]]*365 -> 5,000.50 $
B33: Dépenses | C33: Habillement | D33: 3.29 $ | E33: =Quotidien[[#This Row],[Annuel]]/12 -> 100.07 $ | F33: =Quotidien[[#This Row],[Quotidien]]*365 -> 1,200.85 $
B34: Dépenses | C34: Soins médicaux/dentaires/Pharmacie | D34: 1.64 $ | E34: =Quotidien[[#This Row],[Annuel]]/12 -> 49.88 $ | F34: =Quotidien[[#This Row],[Quotidien]]*365 -> 598.60 $
B35: Dépenses | C35: Bus | D35: 1.00 $ | E35: =Quotidien[[#This Row],[Annuel]]/12 -> 30.42 $ | F35: =Quotidien[[#This Row],[Quotidien]]*365 -> 365.00 $
B36: Dépenses | C36: Divers 2 | D36: 0.00 $ | E36: =Quotidien[[#This Row],[Annuel]]/12 -> 0.00 $ | F36: =Quotidien[[#This Row],[Quotidien]]*365 -> 0.00 $
B37: Dépenses | C37: Divers 3 | D37: 0.00 $ | E37: =Quotidien[[#This Row],[Annuel]]/12 -> 0.00 $ | F37: =Quotidien[[#This Row],[Quotidien]]*365 -> 0.00 $
B38: Dépenses | C38: Divers 4 | D38: 0.00 $ | E38: =Quotidien[[#This Row],[Annuel]]/12 -> 0.00 $ | F38: =Quotidien[[#This Row],[Quotidien]]*365 -> 0.00 $
B39: Discrétionnaire | C39: Restaurants | D39: 3.29 $ | E39: =Quotidien[[#This Row],[Annuel]]/12 -> 100.07 $ | F39: =Quotidien[[#This Row],[Quotidien]]*365 -> 1,200.85 $
B40: Discrétionnaire | C40: Cadeaux | D40: 1.64 $ | E40: =Quotidien[[#This Row],[Annuel]]/12 -> 49.88 $ | F40: =Quotidien[[#This Row],[Quotidien]]*365 -> 598.60 $
B41: Discrétionnaire | C41: Déplacements | D41: 6.16 $ | E41: =Quotidien[[#This Row],[Annuel]]/12 -> 187.37 $ | F41: =Quotidien[[#This Row],[Quotidien]]*365 -> 2,248.40 $
B42: Discrétionnaire | C42: Loisirs | D42: 3.29 $ | E42: =Quotidien[[#This Row],[Annuel]]/12 -> 100.07 $ | F42: =Quotidien[[#This Row],[Quotidien]]*365 -> 1,200.85 $
B43: Discrétionnaire | C43: Soins personnels | D43: 0.82 $ | E43: =Quotidien[[#This Row],[Annuel]]/12 -> 24.94 $ | F43: =Quotidien[[#This Row],[Quotidien]]*365 -> 299.30 $
B44: Discrétionnaire | C44: Achats | D44: 5.48 $ | E44: =Quotidien[[#This Row],[Annuel]]/12 -> 166.68 $ | F44: =Quotidien[[#This Row],[Quotidien]]*365 -> 2,000.20 $
B45: Discrétionnaire | C45: Dons | D45: 1.64 $ | E45: =Quotidien[[#This Row],[Annuel]]/12 -> 49.88 $ | F45: =Quotidien[[#This Row],[Quotidien]]*365 -> 598.60 $
B46: Discrétionnaire | C46: Club/Abonnements | D46: 0.82 $ | E46: =Quotidien[[#This Row],[Annuel]]/12 -> 24.94 $ | F46: =Quotidien[[#This Row],[Quotidien]]*365 -> 299.30 $
B47: Discrétionnaire | C47: Rénovations | D47: 13.15 $ | E47: =Quotidien[[#This Row],[Annuel]]/12 -> 399.98 $ | F47: =Quotidien[[#This Row],[Quotidien]]*365 -> 4,799.75 $
B48: Discrétionnaire | C48: Divers 1 | D48: 0.00 $ | E48: =Quotidien[[#This Row],[Annuel]]/12 -> 0.00 $ | F48: =Quotidien[[#This Row],[Quotidien]]*365 -> 0.00 $
B49: Discrétionnaire | C49: Divers 2 | D49: 0.00 $ | E49: =Quotidien[[#This Row],[Annuel]]/12 -> 0.00 $ | F49: =Quotidien[[#This Row],[Quotidien]]*365 -> 0.00 $
B50: Épargne | C50: Réserves de trésorerie | D50: 13.70 $ | E50: =Quotidien[[#This Row],[Annuel]]/12 -> 416.71 $ | F50: =Quotidien[[#This Row],[Quotidien]]*365 -> 5,000.50 $
B51: Épargne | C51: 401(k)/Etc | D51: 32.88 $ | E51: =Quotidien[[#This Row],[Annuel]]/12 -> 1,000.10 $ | F51: =Quotidien[[#This Row],[Quotidien]]*365 -> 12,001.20 $
B52: Épargne | C52: Compte d’épargne | D52: 16.44 $ | E52: =Quotidien[[#This Row],[Annuel]]/12 -> 500.05 $ | F52: =Quotidien[[#This Row],[Quotidien]]*365 -> 6,000.60 $
B53: Épargne | C53: Divers 1 | D53: 0.00 $ | E53: =Quotidien[[#This Row],[Annuel]]/12 -> 0.00 $ | F53: =Quotidien[[#This Row],[Quotidien]]*365 -> 0.00 $
B54: Épargne | C54: Divers 2 | D54: 0.00 $ | E54: =Quotidien[[#This Row],[Annuel]]/12 -> 0.00 $ | F54: =Quotidien[[#This Row],[Quotidien]]*365 -> 0.00 $
B55: Total | D55: =SUMIF(Quotidien[Type],"Revenu",Quotidien[Quotidien])-SUMIF(Quotidien[Type],"<>Revenu",Quotidien[Quotidien]) -> 107.10 $ | E55: =SUMIF(Quotidien[Type],"Revenu",Quotidien[Mensuel])-SUMIF(Quotidien[Type],"<>Revenu",Quotidien[Mensuel]) -> 3,257.63 $ | F55: =SUMIF(Quotidien[Type],"Revenu",Quotidien[Annuel])-SUMIF(Quotidien[Type],"<>Revenu",Quotidien[Annuel]) -> 39,091.50 $

Sheet Flux de trésorerie mensuel
B1: FLUX DE TRÉSORERIE PERSONNEL
C2: Total des flux de trésorerie mensuels : | D2: =FluxTrésorerieMensuelsÀCeJour -> 18,380.00 $ | F2: REMARQUE : Pour les postes quotidiens, estimez le montant ou la valeur mensuel, et placez cette valeur dans la colonne du mois approprié.
B4: Type | C4: Description | D4: Jan. | E4: Fév. | F4: Mar. | G4: Avr. | H4: Mai | I4: Juin | J4: Juil. | K4: Août | L4: Sept. | M4: Oct. | N4: Nov. | O4: Déc. | P4: Total
B5: Revenu | C5: Salaire | D5: 7,500.00 $ | E5: 7,500.00 $ | F5: 7,500.00 $ | G5: 7,500.00 $ | H5: 7,500.00 $ | I5: 7,500.00 $ | P5: =SUM(Mensuel[[#This Row],[Jan.]:[Déc.]]) -> 45,000.00 $
B6: Revenu | C6: Commissions/Primes | D6: 400.00 $ | E6: 400.00 $ | F6: 500.00 $ | G6: 200.00 $ | H6: 0.00 $ | I6: 600.00 $ | P6: =SUM(Mensuel[[#This Row],[Jan.]:[Déc.]]) -> 2,100.00 $
B7: Revenu | C7: Divers 1 | D7: 2,500.00 $ | E7: 2,500.00 $ | F7: 2,500.00 $ | G7: 2,500.00 $ | H7: 2,500.00 $ | I7: 2,500.00 $ | P7: =SUM(Mensuel[[#This Row],[Jan.]:[Déc.]]) -> 15,000.00 $
B8: Revenu | C8: Divers 2 | D8: 0.00 $ | E8: 0.00 $ | F8: 0.00 $ | G8: 0.00 $ | H8: 0.00 $ | I8: 0.00 $ | P8: =SUM(Mensuel[[#This Row],[Jan.]:[Déc.]]) -> 0.00 $
B9: Revenu | C9: Divers 3 | D9: 0.00 $ | E9: 0.00 $ | F9: 0.00 $ | G9: 0.00 $ | H9: 0.00 $ | I9: 0.00 $ | P9: =SUM(Mensuel[[#This Row],[Jan.]:[Déc.]]) -> 0.00 $
B10: Revenu | C10: Divers 4 | D10: 0.00 $ | E10: 0.00 $ | F10: 0.00 $ | G10: 0.00 $ | H10: 0.00 $ | I10: 0.00 $ | P10: =SUM(Mensuel[[#This Row],[Jan.]:[Déc.]]) -> 0.00 $
B11: Dépenses | C11: Assurance maladie | D11: 1,250.00 $ | E11: 1,250.00 $ | F11: 1,250.00 $ | G11: 1,250.00 $ | H11: 1,250.00 $ | I11: 1,250.00 $ | P11: =SUM(Mensuel[[#This Row],[Jan.]:[Déc.]]) -> 7,500.00 $
B12: Dépenses | C12: Impôts sur les revenus | D12: 208.33 $ | E12: 208.33 $ | F12: 208.33 $ | G12: 208.33 $ | H12: 208.33 $ | I12: 208.33 $ | P12: =SUM(Mensuel[[#This Row],[Jan.]:[Déc.]]) -> 1,250.00 $
B13: Dépenses | C13: Taxe automobile/Frais | D13: 16.67 $ | E13: 16.67 $ | F13: 16.67 $ | G13: 16.67 $ | H13: 16.67 $ | I13: 16.67 $ | P13: =SUM(Mensuel[[#This Row],[Jan.]:[Déc.]]) -> 100.00 $
B14: Dépenses | C14: Prêt automobile | D14: 333.33 $ | E14: 333.33 $ | F14: 333.33 $ | G14: 333.33 $ | H14: 333.33 $ | I14: 333.33 $ | P14: =SUM(Mensuel[[#This Row],[Jan.]:[Déc.]]) -> 2,000.00 $
B15: Dépenses | C15: Prêt immobilier/Loyer | D15: 1,250.00 $ | E15: 1,250.00 $ | F15: 1,250.00 $ | G15: 1,250.00 $ | H15: 1,250.00 $ | I15: 1,250.00 $ | P15: =SUM(Mensuel[[#This Row],[Jan.]:[Déc.]]) -> 7,500.00 $
B16: Dépenses | C16: Assurance | D16: 25.00 $ | E16: 25.00 $ | F16: 25.00 $ | G16: 25.00 $ | H16: 25.00 $ | I16: 25.00 $ | P16: =SUM(Mensuel[[#This Row],[Jan.]:[Déc.]]) -> 150.00 $
B17: Dépenses | C17: Électricité | D17: 100.00 $ | E17: 100.00 $ | F17: 100.00 $ | G17: 100.00 $ | H17: 100.00 $ | I17: 100.00 $ | P17: =SUM(Mensuel[[#This Row],[Jan.]:[Déc.]]) -> 600.00 $
B18: Dépenses | C18: Gaz | D18: 50.00 $ | E18: 50.00 $ | F18: 50.00 $ | G18: 50.00 $ | H18: 50.00 $ | I18: 50.00 $ | P18: =SUM(Mensuel[[#This Row],[Jan.]:[Déc.]]) -> 300.00 $
B19: Dépenses | C19: Eau | D19: 50.00 $ | E19: 50.00 $ | F19: 50.00 $ | G19: 50.00 $ | H19: 50.00 $ | I19: 50.00 $ | P19: =SUM(Mensuel[[#This Row],[Jan.]:[Déc.]]) -> 300.00 $
B20: Dépenses | C20: Assainissement | D20: 25.00 $ | E20: 25.00 $ | F20: 25.00 $ | G20: 25.00 $ | H20: 25.00 $ | I20: 25.00 $ | P20: =SUM(Mensuel[[#This Row],[Jan.]:[Déc.]]) -> 150.00 $
B21: Dépenses | C21: Ordures ménagères | D21: 12.50 $ | E21: 12.50 $ | F21: 12.50 $ | G21: 12.50 $ | H21: 12.50 $ | I21: 12.50 $ | P21: =SUM(Mensuel[[#This Row],[Jan.]:[Déc.]]) -> 75.00 $
B22: Dépenses | C22: Téléphone | D22: 50.00 $ | E22: 50.00 $ | F22: 50.00 $ | G22: 50.00 $ | H22: 50.00 $ | I22: 50.00 $ | P22: =SUM(Mensuel[[#This Row],[Jan.]:[Déc.]]) -> 300.00 $
B23: Dépenses | C23: Internet | D23: 50.00 $ | E23: 50.00 $ | F23: 50.00 $ | G23: 50.00 $ | H23: 50.00 $ | I23: 50.00 $ | P23: =SUM(Mensuel[[#This Row],[Jan.]:[Déc.]]) -> 300.00 $
B24: Dépenses | C24: Primes d’invalidité | D24: 125.00 $ | E24: 125.00 $ | F24: 125.00 $ | G24: 125.00 $ | H24: 125.00 $ | I24: 125.00 $ | P24: =SUM(Mensuel[[#This Row],[Jan.]:[Déc.]]) -> 750.00 $
B25: Dépenses | C25: Nourriture | D25: 400.00 $ | E25: 500.00 $ | F25: 450.00 $ | G25: 400.00 $ | H25: 450.00 $ | I25: 425.00 $ | P25: =SUM(Mensuel[[#This Row],[Jan.]:[Déc.]]) -> 2,625.00 $
B26: Dépenses | C26: Habillement | D26: 50.00 $ | E26: 75.00 $ | F26: 100.00 $ | G26: 75.00 $ | H26: 125.00 $ | I26: 75.00 $ | P26: =SUM(Mensuel[[#This Row],[Jan.]:[Déc.]]) -> 500.00 $
B27: Dépenses | C27: Soins médicaux/dentaires/Pharmacie | D27: 50.00 $ | E27: 10.00 $ | F27: 25.00 $ | G27: 25.00 $ | H27: 20.00 $ | I27: 70.00 $ | P27: =SUM(Mensuel[[#This Row],[Jan.]:[Déc.]]) -> 200.00 $
B28: Dépenses | C28: Bus | D28: 30.00 $ | E28: 30.00 $ | F28: 30.00 $ | G28: 20.00 $ | H28: 30.00 $ | I28: 30.00 $ | P28: =SUM(Mensuel[[#This Row],[Jan.]:[Déc.]]) -> 170.00 $
B29: Dépenses | C29: Divers 2 | D29: 0.00 $ | E29: 0.00 $ | F29: 0.00 $ | G29: 0.00 $ | H29: 0.00 $ | I29: 0.00 $ | P29: =SUM(Mensuel[[#This Row],[Jan.]:[Déc.]]) -> 0.00 $
B30: Dépenses | C30: Divers 3 | D30: 0.00 $ | E30: 0.00 $ | F30: 0.00 $ | G30: 0.00 $ | H30: 0.00 $ | I30: 0.00 $ | P30: =SUM(Mensuel[[#This Row],[Jan.]:[Déc.]]) -> 0.00 $
B31: Dépenses | C31: Divers 4 | D31: 0.00 $ | E31: 0.00 $ | F31: 0.00 $ | G31: 0.00 $ | H31: 0.00 $ | I31: 0.00 $ | P31: =SUM(Mensuel[[#This Row],[Jan.]:[Déc.]]) -> 0.00 $
B32: Discrétionnaire | C32: Restaurants | D32: 50.00 $ | E32: 150.00 $ | F32: 100.00 $ | G32: 50.00 $ | H32: 150.00 $ | I32: 100.00 $ | P32: =SUM(Mensuel[[#This Row],[Jan.]:[Déc.]]) -> 600.00 $
B33: Discrétionnaire | C33: Cadeaux | D33: 25.00 $ | E33: 75.00 $ | F33: 50.00 $ | G33: 25.00 $ | H33: 75.00 $ | I33: 50.00 $ | P33: =SUM(Mensuel[[#This Row],[Jan.]:[Déc.]]) -> 300.00 $
B34: Discrétionnaire | C34: Déplacements | D34: 0.00 $ | E34: 0.00 $ | F34: 1,000.00 $ | G34: 0.00 $ | H34: 0.00 $ | I34: 1,000.00 $ | P34: =SUM(Mensuel[[#This Row],[Jan.]:[Déc.]]) -> 2,000.00 $
B35: Discrétionnaire | C35: Loisirs | D35: 50.00 $ | E35: 150.00 $ | F35: 100.00 $ | G35: 50.00 $ | H35: 150.00 $ | I35: 100.00 $ | P35: =SUM(Mensuel[[#This Row],[Jan.]:[Déc.]]) -> 600.00 $
B36: Discrétionnaire | C36: Soins personnels | D36: 15.00 $ | E36: 25.00 $ | F36: 35.00 $ | G36: 15.00 $ | H36: 25.00 $ | I36: 35.00 $ | P36: =SUM(Mensuel[[#This Row],[Jan.]:[Déc.]]) -> 150.00 $
B37: Discrétionnaire | C37: Achats | D37: 100.00 $ | E37: 200.00 $ | F37: 150.00 $ | G37: 175.00 $ | H37: 150.00 $ | I37: 175.00 $ | P37: =SUM(Mensuel[[#This Row],[Jan.]:[Déc.]]) -> 950.00 $
B38: Discrétionnaire | C38: Dons | D38: 50.00 $ | E38: 50.00 $ | F38: 50.00 $ | G38: 50.00 $ | H38: 50.00 $ | I38: 50.00 $ | P38: =SUM(Mensuel[[#This Row],[Jan.]:[Déc.]]) -> 300.00 $
B39: Discrétionnaire | C39: Club/Abonnements | D39: 25.00 $ | E39: 25.00 $ | F39: 25.00 $ | G39: 25.00 $ | H39: 25.00 $ | I39: 25.00 $ | P39: =SUM(Mensuel[[#This Row],[Jan.]:[Déc.]]) -> 150.00 $
B40: Discrétionnaire | C40: Rénovations | D40: 400.00 $ | E40: 400.00 $ | F40: 400.00 $ | G40: 400.00 $ | H40: 400.00 $ | I40: 400.00 $ | P40: =SUM(Mensuel[[#This Row],[Jan.]:[Déc.]]) -> 2,400.00 $
B41: Discrétionnaire | C41: Divers 1 | D41: 0.00 $ | E41: 0.00 $ | F41: 0.00 $ | G41: 0.00 $ | H41: 0.00 $ | I41: 0.00 $ | P41: =SUM(Mensuel[[#This Row],[Jan.]:[Déc.]]) -> 0.00 $
B42: Discrétionnaire | C42: Divers 2 | D42: 0.00 $ | E42: 0.00 $ | F42: 0.00 $ | G42: 0.00 $ | H42: 0.00 $ | I42: 0.00 $ | P42: =SUM(Mensuel[[#This Row],[Jan.]:[Déc.]]) -> 0.00 $
B43: Épargne | C43: Réserves de trésorerie | D43: 416.67 $ | E43: 416.67 $ | F43: 416.67 $ | G43: 416.67 $ | H43: 416.67 $ | I43: 416.67 $ | P43: =SUM(Mensuel[[#This Row],[Jan.]:[Déc.]]) -> 2,500.00 $
B44: Épargne | C44: 401(k)/Etc | D44: 1,000.00 $ | E44: 1,000.00 $ | F44: 1,000.00 $ | G44: 1,000.00 $ | H44: 1,000.00 $ | I44: 1,000.00 $ | P44: =SUM(Mensuel[[#This Row],[Jan.]:[Déc.]]) -> 6,000.00 $
B45: Épargne | C45: Compte d’épargne | D45: 500.00 $ | E45: 500.00 $ | F45: 500.00 $ | G45: 500.00 $ | H45: 500.00 $ | I45: 500.00 $ | P45: =SUM(Mensuel[[#This Row],[Jan.]:[Déc.]]) -> 3,000.00 $
B46: Épargne | C46: Divers 1 | D46: 0.00 $ | E46: 0.00 $ | F46: 0.00 $ | G46: 0.00 $ | H46: 0.00 $ | I46: 0.00 $ | P46: =SUM(Mensuel[[#This Row],[Jan.]:[Déc.]]) -> 0.00 $
B47: Épargne | C47: Divers 2 | D47: 0.00 $ | E47: 0.00 $ | F47: 0.00 $ | G47: 0.00 $ | H47: 0.00 $ | I47: 0.00 $ | P47: =SUM(Mensuel[[#This Row],[Jan.]:[Déc.]]) -> 0.00 $
B48: Total | D48: =SUMIF(Mensuel[Type],"Revenu",Mensuel[Jan.])-SUMIF(Mensuel[Type],"<>Revenu",Mensuel[Jan.]) -> 3,692.50 $ | E48: =SUMIF(Mensuel[Type],"Revenu",Mensuel[Fév.])-SUMIF(Mensuel[Type],"<>Revenu",Mensuel[Fév.]) -> 3,247.50 $ | F48: =SUMIF(Mensuel[Type],"Revenu",Mensuel[Mar.])-SUMIF(Mensuel[Type],"<>Revenu",Mensuel[Mar.]) -> 2,522.50 $ | G48: =SUMIF(Mensuel[Type],"Revenu",Mensuel[Avr.])-SUMIF(Mensuel[Type],"<>Revenu",Mensuel[Avr.]) -> 3,427.50 $ | H48: =SUMIF(Mensuel[Type],"Revenu",Mensuel[Mai])-SUMIF(Mensuel[Type],"<>Revenu",Mensuel[Mai]) -> 2,887.50 $ | I48: =SUMIF(Mensuel[Type],"Revenu",Mensuel[Juin])-SUMIF(Mensuel[Type],"<>Revenu",Mensuel[Juin]) -> 2,602.50 $ | J48: =SUMIF(Mensuel[Type],"Revenu",Mensuel[Juil.])-SUMIF(Mensuel[Type],"<>Revenu",Mensuel[Juil.]) -> 0.00 $ | K48: =SUMIF(Mensuel[Type],"Revenu",Mensuel[Août])-SUMIF(Mensuel[Type],"<>Revenu",Mensuel[Août]) -> 0.00 $ | L48: =SUMIF(Mensuel[Type],"Revenu",Mensuel[Sept.])-SUMIF(Mensuel[Type],"<>Revenu",Mensuel[Sept.]) -> 0.00 $ | M48: =SUMIF(Mensuel[Type],"Revenu",Mensuel[Oct.])-SUMIF(Mensuel[Type],"<>Revenu",Mensuel[Oct.]) -> 0.00 $ | N48: =SUMIF(Mensuel[Type],"Revenu",Mensuel[Nov.])-SUMIF(Mensuel[Type],"<>Revenu",Mensuel[Nov.]) -> 0.00 $ | O48: =SUMIF(Mensuel[Type],"Revenu",Mensuel[Déc.])-SUMIF(Mensuel[Type],"<>Revenu",Mensuel[Déc.]) -> 0.00 $ | P48: =SUMIF(Mensuel[Type],"Revenu",Mensuel[Total])-SUMIF(Mensuel[Type],"<>Revenu",Mensuel[Total]) -> 18,380.00 $

Sheet Flux de trésorerie annuel
B1: FLUX DE TRÉSORERIE PERSONNEL
C2: Total des flux de trésorerie à ce jour : | D2: =FluxTrésorerieAnnuelsÀCeJour -> 42,250.00 $ | G2: Il s’agit d’une estimation annuelle. Cette feuille de calcul vous permet de consulter les montants annuels avec des valeurs mensuelles estimées. Utilisez les feuilles de calcul Revenus, Dépenses, Discrétionnaires et Épargne pour entrer des postes.
B4: RÉCAPITULATIF DES REVENUS | F4: RÉCAPITULATIF DES DÉPENSES | J4: RÉCAPITULATIF DES DÉPENSES DISCRÉTIONNAIRES | N4: RÉCAPITULATIF DE L’ÉPARGNE
B5: Total annuel : | C5: ='Revenu'!C11 -> 125,000.00 $ | F5: Total annuel : | G5: =Dépenses[[#Totals],[Annuel ]] -> 46,500.00 $ | J5: Total annuel : | K5: =Discrétionnaire[[#Totals],[Annuel ]] -> 13,250.00 $ | N5: Total annuel : | O5: =Épargne[[#Totals],[Annuel ]] -> 23,000.00 $
B8: Total mensuel : | C8: ='Revenu'!D11 -> 10,416.67 $ | F8: Total mensuel : | G8: =Dépenses[[#Totals],[Mensuel ]] -> 3,875.00 $ | J8: Total mensuel : | K8: =Discrétionnaire[[#Totals],[Mensuel ]] -> 1,104.17 $ | N8: Total mensuel : | O8: =Épargne!D10 -> 1,916.67 $
R10: Intitulés des lignes | S10: Somme annuelle | U10: Intitulés des lignes | V10: Somme annuelle | X10: Intitulés des lignes | Y10: Somme annuelle | AA10: Intitulés des lignes | AB10: Somme annuelle
R11: Divers 2 | S11: $0 | U11: Divers 2 | V11: $0 | X11: Divers 2 | Y11: $0 | AA11: Divers 2 | AB11: $0
R12: Divers 3 | S12: $0 | U12: Divers 1 | V12: $0 | X12: Divers 1 | Y12: $0 | AA12: Divers 1 | AB12: $0
R13: Divers 4 | S13: $0 | U13: Ordures ménagères | V13: $150 | X13: Club/Abonnements | Y13: $300 | AA13: Réserves de trésorerie | AB13: $5,000
R14: Commissions/Primes | S14: $5,000 | U14: Taxe automobile/Frais | V14: $200 | X14: Soins personnels | Y14: $300 | AA14: Épargne/investissement | AB14: $6,000
R15: Divers 1 | S15: $30,000 | U15: Assurance | V15: $250 | X15: Cadeaux | Y15: $600 | AA15: 401(k)/Etc | AB15: $12,000
R16: Salaire | S16: $90,000 | U16: Gaz | V16: $600 | X16: Dons | Y16: $600 | AA16: Total général | AB16: $23,000
R17: Total général | S17: $125,000 | U17: Internet | V17: $600 | X17: Loisirs | Y17: $1,200
U18: Téléphone | V18: $600 | X18: Restaurants | Y18: $1,200
U19: Eau/assainissement | V19: $600 | X19: Achats | Y19: $2,000
U20: Soins médicaux/dentaires/Pharmacie | V20: $600 | X20: Déplacements | Y20: $2,250
U21: Habillement | V21: $1,200 | X21: Rénovations | Y21: $4,800
U22: Électricité | V22: $1,200 | X22: Total général | Y22: $13,250
U23: Primes d’invalidité | V23: $1,500
U24: Impôts sur les revenus | V24: $2,500
U25: Prêt automobile | V25: $4,000
U26: Nourriture | V26: $5,000
U27: Assurance maladie | V27: $12,500
U28: Prêt immobilier/Loyer | V28: $15,000
U29: Total général | V29: $46,500

Sheet Revenu
B1: FLUX DE TRÉSORERIE PERSONNEL
C2: Total des flux de trésorerie à ce jour : | D2: =FluxTrésorerieAnnuelsÀCeJour -> 42,250.00 $ | F2: Il s’agit d’une estimation annuelle. Cette feuille de calcul vous permet de consulter les montants annuels avec des valeurs mensuelles estimées. Si vous souhaitez ajouter des postes quotidiens à la table, estimez le montant ou la valeur annuel, et placez cette valeur dans la colonne Annuel appropriée.
B4: Revenus | C4: Annuel | D4: Mensuel
B5: Salaire | C5: 90,000.00 $ | D5: =Revenu[[#This Row],[Annuel ]]/12 -> 7,500.00 $
B6: Commissions/Primes | C6: 5,000.00 $ | D6: =Revenu[[#This Row],[Annuel ]]/12 -> 416.67 $
B7: Divers 1 | C7: 30,000.00 $ | D7: =Revenu[[#This Row],[Annuel ]]/12 -> 2,500.00 $
B8: Divers 2 | C8: 0.00 $ | D8: =Revenu[[#This Row],[Annuel ]]/12 -> 0.00 $
B9: Divers 3 | C9: 0.00 $ | D9: =Revenu[[#This Row],[Annuel ]]/12 -> 0.00 $
B10: Divers 4 | C10: 0.00 $ | D10: =Revenu[[#This Row],[Annuel ]]/12 -> 0.00 $
B11: Total | C11: =SUBTOTAL(109,Revenu[[Annuel ]]) -> 125,000.00 $ | D11: =SUBTOTAL(109,Revenu[[Mensuel ]]) -> 10,416.67 $

Sheet Dépenses
B1: FLUX DE TRÉSORERIE PERSONNEL
C2: Total des flux de trésorerie à ce jour : | D2: =FluxTrésorerieAnnuelsÀCeJour -> 42,250.00 $ | F2: Il s’agit d’une estimation annuelle. Cette feuille de calcul vous permet de consulter les montants annuels avec des valeurs mensuelles estimées Si vous souhaitez ajouter des postes quotidiens à la table, estimez le montant ou la valeur annuel, et placez cette valeur dans la colonne Annuel appropriée.
B4: Dépenses | C4: Annuel | D4: Mensuel
B5: Assurance maladie | C5: 12,500.00 $ | D5: =Dépenses[[#This Row],[Annuel ]]/12 -> 1,041.67 $
B6: Impôts sur les revenus | C6: 2,500.00 $ | D6: =Dépenses[[#This Row],[Annuel ]]/12 -> 208.33 $
B7: Taxe automobile/Frais | C7: 200.00 $ | D7: =Dépenses[[#This Row],[Annuel ]]/12 -> 16.67 $
B8: Prêt automobile | C8: 4,000.00 $ | D8: =Dépenses[[#This Row],[Annuel ]]/12 -> 333.33 $
B9: Prêt immobilier/Loyer | C9: 15,000.00 $ | D9: =Dépenses[[#This Row],[Annuel ]]/12 -> 1,250.00 $
B10: Assurance | C10: 250.00 $ | D10: =Dépenses[[#This Row],[Annuel ]]/12 -> 20.83 $
B11: Électricité | C11: 1,200.00 $ | D11: =Dépenses[[#This Row],[Annuel ]]/12 -> 100.00 $
B12: Gaz | C12: 600.00 $ | D12: =Dépenses[[#This Row],[Annuel ]]/12 -> 50.00 $
B13: Eau/assainissement | C13: 600.00 $ | D13: =Dépenses[[#This Row],[Annuel ]]/12 -> 50.00 $
B14: Ordures ménagères | C14: 150.00 $ | D14: =Dépenses[[#This Row],[Annuel ]]/12 -> 12.50 $
B15: Téléphone | C15: 600.00 $ | D15: =Dépenses[[#This Row],[Annuel ]]/12 -> 50.00 $
B16: Internet | C16: 600.00 $ | D16: =Dépenses[[#This Row],[Annuel ]]/12 -> 50.00 $
B17: Primes d’invalidité | C17: 1,500.00 $ | D17: =Dépenses[[#This Row],[Annuel ]]/12 -> 125.00 $
B18: Nourriture | C18: 5,000.00 $ | D18: =Dépenses[[#This Row],[Annuel ]]/12 -> 416.67 $
B19: Habillement | C19: 1,200.00 $ | D19: =Dépenses[[#This Row],[Annuel ]]/12 -> 100.00 $
B20: Soins médicaux/dentaires/Pharmacie | C20: 600.00 $ | D20: =Dépenses[[#This Row],[Annuel ]]/12 -> 50.00 $
B21: Divers 1 | C21: 0.00 $ | D21: =Dépenses[[#This Row],[Annuel ]]/12 -> 0.00 $
B22: Divers 2 | C22: 0.00 $ | D22: =Dépenses[[#This Row],[Annuel ]]/12 -> 0.00 $
B23: Total | C23: =SUBTOTAL(109,Dépenses[[Annuel ]]) -> 46,500.00 $ | D23: =SUBTOTAL(109,Dépenses[[Mensuel ]]) -> 3,875.00 $

Sheet Dépenses discrétionnaires
B1: FLUX DE TRÉSORERIE PERSONNEL
C2: Total des flux de trésorerie à ce jour : | D2: =FluxTrésorerieAnnuelsÀCeJour -> 42,250.00 $ | F2: Il s’agit d’une estimation annuelle. Cette feuille de calcul vous permet de consulter les montants annuels avec des valeurs mensuelles estimées Si vous souhaitez ajouter des postes quotidiens à la table, estimez le montant ou la valeur annuel, et placez cette valeur dans la colonne Annuel appropriée.
B4: Dépenses | C4: Annuel | D4: Mensuel
B5: Restaurants | C5: 1,200.00 $ | D5: =Discrétionnaire[[#This Row],[Annuel ]]/12 -> 100.00 $
B6: Cadeaux | C6: 600.00 $ | D6: =Discrétionnaire[[#This Row],[Annuel ]]/12 -> 50.00 $
B7: Déplacements | C7: 2,250.00 $ | D7: =Discrétionnaire[[#This Row],[Annuel ]]/12 -> 187.50 $
B8: Loisirs | C8: 1,200.00 $ | D8: =Discrétionnaire[[#This Row],[Annuel ]]/12 -> 100.00 $
B9: Soins personnels | C9: 300.00 $ | D9: =Discrétionnaire[[#This Row],[Annuel ]]/12 -> 25.00 $
B10: Achats | C10: 2,000.00 $ | D10: =Discrétionnaire[[#This Row],[Annuel ]]/12 -> 166.67 $
B11: Dons | C11: 600.00 $ | D11: =Discrétionnaire[[#This Row],[Annuel ]]/12 -> 50.00 $
B12: Club/Abonnements | C12: 300.00 $ | D12: =Discrétionnaire[[#This Row],[Annuel ]]/12 -> 25.00 $
B13: Rénovations | C13: 4,800.00 $ | D13: =Discrétionnaire[[#This Row],[Annuel ]]/12 -> 400.00 $
B14: Divers 1 | C14: 0.00 $ | D14: =Discrétionnaire[[#This Row],[Annuel ]]/12 -> 0.00 $
B15: Divers 2 | C15: 0.00 $ | D15: =Discrétionnaire[[#This Row],[Annuel ]]/12 -> 0.00 $
B16: Total | C16: =SUBTOTAL(109,Discrétionnaire[[Annuel ]]) -> 13,250.00 $ | D16: =SUBTOTAL(109,Discrétionnaire[[Mensuel ]]) -> 1,104.17 $

Sheet Épargne
B1: FLUX DE TRÉSORERIE PERSONNEL
C2: Total des flux de trésorerie à ce jour : | D2: =FluxTrésorerieAnnuelsÀCeJour -> 42,250.00 $ | F2: Il s’agit d’une estimation annuelle. Cette feuille de calcul vous permet de consulter les montants annuels avec des valeurs mensuelles estimées Si vous souhaitez ajouter des postes quotidiens à la table, estimez le montant ou la valeur annuel, et placez cette valeur dans la colonne Annuel appropriée.
B4: Épargne | C4: Annuel | D4: Mensuel
B5: Réserves de trésorerie | C5: 5,000.00 $ | D5: =Épargne[[#This Row],[Annuel ]]/12 -> 416.67 $
B6: 401(k)/Etc | C6: 12,000.00 $ | D6: =Épargne[[#This Row],[Annuel ]]/12 -> 1,000.00 $
B7: Épargne/investissement | C7: 6,000.00 $ | D7: =Épargne[[#This Row],[Annuel ]]/12 -> 500.00 $
B8: Divers 1 | C8: 0.00 $ | D8: =Épargne[[#This Row],[Annuel ]]/12 -> 0.00 $
B9: Divers 2 | C9: 0.00 $ | D9: =Épargne[[#This Row],[Annuel ]]/12 -> 0.00 $
B10: Total | C10: =SUBTOTAL(109,Épargne[[Annuel ]]) -> 23,000.00 $ | D10: =SUBTOTAL(109,Épargne[[Mensuel ]]) -> 1,916.67 $
